bitfinex/quotes_SOLUSD_20220104
["timestamp","ask_amount","ask_price","bid_price","bid_amount"]
[1641290153060,22.78747979,167.91,167.82,29.04709618]
[1641290153760,24.44000139,167.91,167.82,29.04709618]
[1641290154461,1.2655,167.9,167.82,29.04709618]
[1641290154663,1.2655,167.9,167.82,28.78709618]
[1641290155961,1.2655,167.9,167.82,29.04709618]
[1641290161072,1.2655,167.9,167.82,28.78709618]
[1641290161271,1.2655,167.9,167.82,2.72319618]
[1641290163888,1.2655,167.9,167.82,2.98319618]
[1641290171887,22.78747979,167.91,167.82,2.98319618]
[1641290173690,22.78747979,167.91,167.82,2.48319618]
[1641290174090,1.2938,167.9,167.82,2.48319618]
[1641290174990,1.2938,167.9,167.82,2.98319618]
[1641290175193,1.2938,167.9,167.82,0.76]
[1641290175391,1.2938,167.9,167.8,24.4957]
[1641290175592,29.3343,167.9,167.8,24.4957]
[1641290175791,29.5943,167.9,167.8,24.4957]
[1641290175993,1.6525216,167.89,167.8,23.9957]
[1641290176394,1.9125216,167.89,167.8,23.9957]
[1641290176994,0.76,167.89,167.8,24.2557]
[1641290177222,0.26,167.89,167.8,24.2557]
[1641290177422,1.2565,167.89,167.8,24.7557]
[1641290177825,1.5165,167.89,167.8,24.7557]
[1641290179926,2.0165,167.89,167.8,24.7557]
[1641290184433,3.6690216,167.89,167.8,24.7557]
[1641290185035,3.4090216,167.89,167.8,24.7557]
[1641290185437,25.4171541,167.87,167.8,24.7557]
[1641290185935,25.9171541,167.87,167.8,24.7557]
[1641290186940,25.4171541,167.87,167.8,24.7557]
[1641290188141,25.4171541,167.87,167.8,2.0049]
[1641290191144,26.7592541,167.87,167.8,2.0049]
[1641290193944,26.7592541,167.87,167.8,1.7449]
[1641290195649,26.7592541,167.87,167.8,2.0049]
[1641290200851,26.7592541,167.87,167.8,1.7449]
[1641290202550,26.7592541,167.87,167.8,2.0049]
[1641290205858,25.4171541,167.87,167.8,2.0049]
[1641290214083,26.6721541,167.87,167.8,2.0049]
[1641290217692,1.255,167.87,167.8,2.0049]
[1641290217889,1.6525216,167.89,167.8,10.20389848]
[1641290218291,1.6525216,167.89,167.8,2.0049]
[1641290218491,82.1043216,167.92,167.8,10.5449]
[1641290218690,1.6525216,167.92,167.82,31.60069279]
[1641290218891,1.6525216,167.92,167.84,2.4329147]
[1641290219095,1.6525216,167.92,167.84,2.6929147]
[1641290219291,1.6525216,167.92,167.84,3.1929147]
[1641290219494,1.6525216,167.92,167.84,4.5666147]
[1641290219694,1.6525216,167.92,167.85,24.7578]
[1641290219895,1.6525216,167.92,167.85,25.2578]
[1641290220095,1.6525216,167.92,167.85,25.5178]
[1641290220295,1.6525216,167.93,167.85,25.5178]
[1641290221799,1.6525216,167.94,167.85,25.5178]
[1641290225403,1.6525216,167.94,167.86,29.30852912]
[1641290225603,1.6525216,167.94,167.87,24.7943]
[1641290225901,1.6525216,167.94,167.87,25.2943]
[1641290226102,1.6525216,167.94,167.87,25.5543]
[1641290227705,1.6525216,167.94,167.87,25.2943]
[1641290228806,1.6525216,167.93,167.87,25.2943]
[1641290229006,1.6525216,167.93,167.87,25.5543]
[1641290229209,1.6525216,167.93,167.87,25.0543]
[1641290230410,1.6525216,167.93,167.87,25.5543]
[1641290233013,1.6525216,167.93,167.87,24.7943]
[1641290233216,1.6525216,167.93,167.83,0.02]
[1641290233422,1.9125216,167.93,167.83,0.02]
[1641290233820,1.6525216,167.91,167.83,31.23132403]
[1641290234019,18.36557205,167.9,167.83,31.23132403]
[1641290234222,18.36557205,167.9,167.84,2.6198352]
[1641290234419,18.36557205,167.9,167.84,3.1198352]
[1641290234921,18.36557205,167.9,167.84,3.3798352]
[1641290235221,18.36557205,167.9,167.84,0.76]
[1641290235425,18.36557205,167.9,167.83,23.9543]
[1641290236224,18.36557205,167.9,167.83,26.55880602]
[1641290238851,19.65757205,167.9,167.83,26.55880602]
[1641290242954,1.292,167.9,167.83,26.55880602]
[1641290243156,1.6525216,167.91,167.83,26.55880602]
[1641290244359,1.6525216,167.92,167.83,26.55880602]
[1641290245160,1.6525216,167.92,167.84,1.355]
[1641290245360,1.6525216,167.92,167.84,1.855]
[1641290245558,1.6525216,167.92,167.84,2.115]
[1641290249661,1.6525216,167.91,167.84,2.115]
[1641290250669,1.6525216,167.92,167.84,2.115]
[1641290264810,27.9098216,167.93,167.84,2.115]
[1641290266110,1.6525216,167.92,167.84,2.115]
[1641290274026,1.6525216,167.91,167.84,2.115]
[1641290274427,1.6525216,167.91,167.84,1.855]
[1641290274654,22.90283333,167.9,167.84,1.855]
[1641290275853,22.90283333,167.9,167.84,0.5]
[1641290276054,22.90283333,167.9,167.83,23.6943]
[1641290276452,22.90283333,167.9,167.83,23.1943]
[1641290276653,22.90283333,167.9,167.83,23.6943]
[1641290277354,22.90283333,167.9,167.83,0.5]
[1641290277857,22.90283333,167.9,167.82,2.68194137]
[1641290278654,22.90283333,167.9,167.82,2.94194137]
[1641290279855,35.33700135,167.9,167.82,2.94194137]
[1641290280056,22.90283333,167.9,167.82,2.94194137]
[1641290280256,24.55535493,167.9,167.82,2.94194137]
[1641290280959,22.90283333,167.9,167.82,2.94194137]
[1641290281157,22.90283333,167.9,167.82,4.25784137]
[1641290283666,22.90283333,167.9,167.82,2.68194137]
[1641290284064,22.90283333,167.9,167.82,2.18194137]
[1641290284264,24.55535493,167.9,167.82,2.18194137]
[1641290285467,24.55535493,167.9,167.82,2.94194137]
[1641290288570,22.90283333,167.9,167.82,2.94194137]
[1641290289370,22.90283333,167.9,167.82,4.26304137]
[1641290290471,24.55535493,167.9,167.82,4.26304137]
[1641290292575,25.05535493,167.9,167.82,4.26304137]
[1641290295480,24.55535493,167.9,167.82,4.26304137]
[1641290297084,22.90283333,167.9,167.82,4.26304137]
[1641290300488,22.90283333,167.9,167.82,2.0811]
[1641290308424,22.90283333,167.9,167.81,13.10476236]
[1641290308625,22.90283333,167.9,167.81,18.95504424]
[1641290309024,22.90283333,167.9,167.82,23.9844]
[1641290310328,22.90283333,167.9,167.82,26.0703]
[1641290310933,22.90283333,167.9,167.82,2.0859]
[1641290311739,22.90283333,167.9,167.82,1.5859]
[1641290312437,22.90283333,167.9,167.82,1.3259]
[1641290313038,22.90283333,167.9,167.82,1.8259]
[1641290313440,1.2878,167.89,167.82,1.8259]
[1641290313843,1.2878,167.89,167.82,2.0859]
[1641290316442,1.2878,167.89,167.82,1.5859]
[1641290317844,1.2878,167.89,167.82,2.0859]
[1641290322072,1.2878,167.89,167.82,1.5859]
[1641290323473,1.2878,167.89,167.82,2.0859]
[1641290324074,1.2878,167.89,167.82,1.8259]
[1641290325376,1.2878,167.89,167.82,2.0859]
[1641290326981,1.2878,167.89,167.82,25.0621]
[1641290336889,1.7878,167.89,167.82,25.0621]
[1641290341998,1.7878,167.89,167.82,22.9762]
[1641290342201,1.7878,167.89,167.78,26.1198]
[1641290342400,25.5539,167.89,167.79,25.6974]
[1641290343500,25.5539,167.89,167.79,26.1974]
[1641290344100,25.0539,167.89,167.79,26.1974]
[1641290344500,26.7064216,167.89,167.79,26.1974]
[1641290345102,26.7064216,167.89,167.79,26.4574]
[1641290345503,27.2064216,167.89,167.79,26.4574]
[1641290346629,25.5539,167.89,167.79,26.4574]
[1641290347334,25.0539,167.89,167.79,26.4574]
[1641290354845,25.0539,167.89,167.79,25.9574]
[1641290361783,25.0539,167.89,167.79,25.6974]
[1641290361985,25.0539,167.89,167.79,24.93]
[1641290362182,8.54,167.88,167.79,24.93]
[1641290362585,8.8,167.88,167.79,24.93]
[1641290362783,8.8,167.88,167.79,27.43716909]
[1641290363183,1.2943,167.87,167.79,27.43716909]
[1641290363583,1.2943,167.87,167.79,27.69716909]
[1641290363792,1.2943,167.87,167.79,3.26716909]
[1641290364785,1.2943,167.87,167.79,0.76]
[1641290364985,1.2943,167.87,167.79,0.5]
[1641290365191,1.2943,167.87,167.77,24.7987]
[1641290365785,1.2943,167.87,167.78,2.92592902]
[1641290365987,1.2943,167.87,167.78,3.68592902]
[1641290366486,1.2943,167.87,167.78,0.76]
[1641290366886,1.5543,167.87,167.77,24.7987]
[1641290367090,1.5543,167.87,167.77,23.4291]
[1641290367387,3.7068216,167.87,167.77,23.4291]
[1641290367588,24.2583,167.86,167.77,26.47609455]
[1641290367790,24.42401148,167.85,167.77,26.47609455]
[1641290368691,25.75801148,167.85,167.77,26.47609455]
[1641290370296,1.334,167.85,167.77,26.47609455]
[1641290370493,1.834,167.85,167.77,27.90278823]
[1641290370896,1.834,167.85,167.77,26.47609455]
[1641290371295,1.334,167.85,167.77,26.47609455]
[1641290371494,29.25998835,167.85,167.77,26.47609455]
[1641290372698,28.75998835,167.85,167.77,26.47609455]
[1641290373498,29.25998835,167.85,167.77,26.47609455]
[1641290373698,28.75998835,167.85,167.77,26.47609455]
[1641290373899,29.25998835,167.85,167.77,26.47609455]
[1641290374298,28.75998835,167.85,167.77,26.47609455]
[1641290375403,29.25998835,167.85,167.77,26.47609455]
[1641290375802,28.75998835,167.85,167.77,26.47609455]
[1641290376002,29.25998835,167.85,167.77,26.47609455]
[1641290376203,1.334,167.85,167.77,26.47609455]
[1641290376402,1.834,167.85,167.77,26.47609455]
[1641290377705,1.334,167.85,167.77,26.47609455]
[1641290378307,1.334,167.85,167.78,27.27018644]
[1641290378607,1.334,167.85,167.78,27.53018644]
[1641290378807,1.834,167.85,167.78,27.53018644]
[1641290379207,1.334,167.85,167.78,27.53018644]
[1641290379508,1.834,167.85,167.78,0.76]
[1641290379709,1.834,167.85,167.78,0.5]
[1641290380109,1.834,167.85,167.77,26.47609455]
[1641290380813,1.334,167.85,167.77,26.47609455]
[1641290381012,1.834,167.85,167.77,26.47609455]
[1641290381712,1.334,167.85,167.77,26.47609455]
[1641290386141,26.40597134,167.87,167.77,26.47609455]
[1641290386346,27.72107134,167.87,167.77,26.47609455]
[1641290386941,24.1754,167.86,167.77,26.47609455]
[1641290390446,1.2508,167.85,167.77,26.47609455]
[1641290391648,1.2508,167.85,167.77,26.21609455]
[1641290393647,1.2508,167.85,167.77,26.47609455]
[1641290395252,1.2508,167.85,167.77,23.1691]
[1641290395454,1.2508,167.85,167.76,1.2926]
[1641290395455,1.2508,167.85,167.72,78.1484]
[1641290395754,77.08499368,167.85,167.72,0.02]
[1641290395956,8.54,167.84,167.72,0.02]
[1641290396360,9.04,167.84,167.72,2.18597696]
[1641290396558,24.9529,167.83,167.72,2.18597696]
[1641290396758,24.9529,167.83,167.72,2.68597696]
[1641290396959,25.4529,167.83,167.72,2.68597696]
[1641290397162,1.3177,167.82,167.73,1.2975]
[1641290397360,1.3177,167.82,167.73,1.7975]
[1641290397560,1.3177,167.82,167.73,2.0575]
[1641290398361,77.4297216,167.85,167.73,2.0575]
[1641290399362,75.7772,167.85,167.73,2.0575]
[1641290399966,75.7772,167.85,167.73,25.2648]
[1641290400366,1.3697,167.85,167.73,25.2648]
[1641290401070,1.6525216,167.88,167.74,8.54]
[1641290401266,1.6525216,167.88,167.75,23.6907]
[1641290401470,75.6996216,167.89,167.76,8.54]
[1641290401667,1.6525216,167.89,167.77,24.9896]
[1641290401868,1.6525216,167.89,167.78,10.92067878]
[1641290402299,1.6525216,167.89,167.79,28.87190692]
[1641290402502,1.6525216,167.89,167.8,33.417]
[1641290402700,1.6525216,167.93,167.8,33.417]
[1641290402899,1.6525216,167.93,167.8,36.64649368]
[1641290403100,1.6525216,167.93,167.81,1.42669368]
[1641290403299,1.6525216,167.93,167.81,9.96669368]
[1641290403499,1.6525216,167.95,167.81,10.46669368]
[1641290403704,1.6525216,167.95,167.82,1.42669368]
[1641290403901,1.6525216,167.95,167.83,8.54]
[1641290404101,1.6525216,167.95,167.84,26.76944167]
[1641290404301,1.6525216,167.95,167.84,40.71944167]
[1641290404502,1.6525216,167.95,167.84,41.47944167]
[1641290404808,1.6525216,167.95,167.86,31.32881978]
[1641290405003,1.6525216,167.96,167.86,40.12881978]
[1641290405216,1.6525216,167.96,167.86,40.62881978]
[1641290405704,0.02,167.97,167.86,40.62881978]
[1641290405930,0.02,167.97,167.87,24.4692]
[1641290406306,0.02,167.97,167.87,25.2292]
[1641290408105,0.02,167.97,167.87,26.65589368]
[1641290408909,0.02,167.97,167.87,35.19589368]
[1641290409706,0.02,167.97,167.87,36.52539368]
[1641290410810,0.02,167.97,167.87,36.26539368]
[1641290411010,0.02,167.97,167.87,34.8387]
[1641290411211,0.02,167.97,167.87,40.1867]
[1641290411412,0.02,167.97,167.88,1.42669368]
[1641290411611,0.02,167.97,167.89,8.54]
[1641290411812,0.02,167.97,167.9,2.47086312]
[1641290412009,0.02,167.97,167.91,8.54]
[1641290412216,0.02,167.97,167.91,9.96669368]
[1641290412413,0.02,167.97,167.91,10.72669368]
[1641290412611,0.02,167.97,167.92,1.42669368]
[1641290412811,0.02,167.97,167.92,9.96669368]
[1641290413012,0.02,167.97,167.93,25.67146391]
[1641290413213,108.3425216,168.15,167.93,27.09815759]
[1641290413438,117.3893,168.08,167.94,8.54]
[1641290413639,117.3893,168.08,167.94,9.96669368]
[1641290413838,119.0418216,168.08,167.94,10.72669368]
[1641290414045,119.0418216,168.08,167.96,2.23490448]
[1641290414441,119.5418216,168.08,167.96,2.99490448]
[1641290416044,117.8893,168.08,167.96,2.99490448]
[1641290416249,94.2,168.08,167.96,2.99490448]
[1641290416648,94.2,168.08,167.97,31.3924]
[1641290416845,94.2,168.08,167.97,31.8924]
[1641290417046,94.2,168.08,167.97,32.1524]
[1641290417250,93.7,168.08,167.97,32.1524]
[1641290417449,2.9742216,168.09,167.97,32.1524]
[1641290417645,1.3217,168.09,167.97,32.1524]
[1641290418747,1.3217,168.09,167.97,33.57909368]
[1641290418947,1.6525216,168.1,167.97,33.57909368]
[1641290419149,2.9809216,168.12,167.97,33.57909368]
[1641290419748,1.3284,168.12,167.97,33.57909368]
[1641290419947,1.3284,168.12,167.98,1.3318]
[1641290420147,1.3284,168.12,168.0,22.44017926]
[1641290420348,1.3284,168.12,168.02,2.20055869]
[1641290420549,1.3284,168.12,168.02,11.00055869]
[1641290420749,1.3284,168.12,168.02,11.50055869]
[1641290421547,1.3284,168.12,168.02,9.3]
[1641290421767,2.9809216,168.12,168.02,9.3]
[1641290422752,1.6525216,168.11,168.02,9.3]
[1641290423351,2.9809216,168.12,168.02,9.3]
[1641290424153,1.3284,168.12,168.02,9.3]
[1641290426261,1.8284,168.12,168.02,9.3]
[1641290426460,3.4809216,168.12,168.02,9.3]
[1641290426760,2.9809216,168.12,168.02,9.3]
[1641290427061,2.9809216,168.12,168.02,9.04]
[1641290427259,3.4809216,168.12,168.02,9.04]
[1641290427459,3.4809216,168.12,168.02,11.35047165]
[1641290427758,2.9809216,168.12,168.02,11.35047165]
[1641290428360,1.6525216,168.11,168.02,11.35047165]
[1641290428561,1.6525216,168.11,168.02,11.61047165]
[1641290428759,1.3284,168.12,168.02,11.61047165]
[1641290429163,1.3284,168.12,168.03,22.9834]
[1641290429361,1.3284,168.12,168.03,23.4834]
[1641290429564,1.3284,168.12,168.03,23.7434]
[1641290430565,1.3284,168.12,168.03,30.1614]
[1641290431966,1.3284,168.12,168.03,23.7434]
[1641290432192,1.3284,168.12,168.03,23.4834]
[1641290433489,1.3284,168.12,168.03,23.7434]
[1641290437893,1.3284,168.12,168.03,23.4834]
[1641290438994,1.3284,168.12,168.03,23.7434]
[1641290445097,1.3284,168.12,168.03,23.4834]
[1641290445296,1.3284,168.12,168.03,0.5]
[1641290445696,1.3284,168.12,168.01,26.617]
[1641290446097,1.3284,168.12,168.01,29.01138256]
[1641290446299,1.3284,168.12,168.01,2.89438256]
[1641290446498,1.5884,168.12,168.01,2.89438256]
[1641290446700,1.3565,168.11,168.01,0.5]
[1641290446898,1.3565,168.11,168.0,31.48017926]
[1641290447703,1.8565,168.11,168.0,34.45521337]
[1641290449102,1.8565,168.11,168.0,34.71521337]
[1641290450703,1.3565,168.11,168.0,34.71521337]
[1641290451002,1.3565,168.11,168.0,36.14190705]
[1641290451203,1.3565,168.11,168.01,22.6808]
[1641290451403,1.3565,168.11,168.01,23.1808]
[1641290451604,1.3565,168.11,168.01,23.4408]
[1641290467549,1.3565,168.11,168.02,1.2747]
[1641290467949,1.3565,168.11,168.02,2.0347]
[1641290479765,1.3565,168.11,168.02,1.7747]
[1641290479966,1.3565,168.11,168.02,0.5]
[1641290480165,10.1565,168.11,167.95,19.28193478]
[1641290480366,23.0369,168.1,167.97,1.314]
[1641290480766,23.5369,168.1,167.98,2.53665464]
[1641290480969,20.66459515,168.09,167.98,2.53665464]
[1641290481369,20.66459515,168.09,167.98,3.03665464]
[1641290481570,24.1006,168.08,167.98,3.03665464]
[1641290481968,24.1006,168.08,167.98,3.29665464]
[1641290492205,24.1006,168.08,167.98,4.72334832]
[1641290492805,24.1006,168.08,167.99,23.3746]
[1641290493005,24.1006,168.08,167.99,23.6346]
[1641290493204,24.1006,168.08,167.99,24.1346]
[1641290493807,24.1006,168.08,167.99,25.4884]
[1641290494608,1.3284,168.12,167.99,35.45509368]
[1641290494810,1.6525216,168.13,167.99,35.45509368]
[1641290495008,197.4803,168.14,167.99,35.45509368]
[1641290495208,1.3318,168.13,167.99,35.45509368]
[1641290495609,30.8882686,168.13,167.99,35.45509368]
[1641290496011,30.8882686,168.13,167.99,35.19509368]
[1641290497315,1.6525216,168.12,167.99,1.3538]
[1641290497512,8.54,168.11,167.98,2.53665464]
[1641290497915,9.04,168.11,167.98,2.53665464]
[1641290498114,1.6525216,168.09,167.98,2.53665464]
[1641290498714,27.1415216,168.1,167.98,3.03665464]
[1641290498916,25.8081216,168.1,167.99,22.5989]
[1641290499115,1.3008,168.09,167.99,22.5989]
[1641290499316,1.3008,168.09,167.99,23.0989]
[1641290499517,1.3008,168.09,167.99,23.3589]
[1641290500418,1.3008,168.09,167.99,24.6056]
[1641290503719,1.3008,168.09,167.99,0.76]
[1641290503920,1.3008,168.09,167.99,0.26]
[1641290504118,1.3008,168.09,167.98,3.29665464]
[1641290504619,2.9533216,168.09,167.98,3.29665464]
[1641290504823,2.9533216,168.09,167.98,26.47785464]
[1641290506023,1.3008,168.09,167.98,26.47785464]
[1641290506626,1.3008,168.09,167.99,1.2477]
[1641290506826,1.3008,168.09,167.99,1.7477]
[1641290507025,1.3008,168.09,167.99,2.0077]
[1641290508125,1.3008,168.09,167.99,0.76]
[1641290508526,1.3008,168.09,167.98,26.47785464]
[1641290508729,1.3008,168.09,167.98,26.21785464]
[1641290509527,2.9533216,168.09,167.98,26.21785464]
[1641290509728,2.9533216,168.09,167.98,26.37363425]
[1641290509927,1.3008,168.09,167.98,26.37363425]
[1641290510529,1.3008,168.09,167.98,26.63363425]
[1641290510729,1.3008,168.09,167.99,1.3618]
[1641290510949,1.3008,168.09,167.99,2.1218]
[1641290511749,1.3008,168.09,168.0,8.54]
[1641290511950,1.6525216,168.11,168.01,23.8044]
[1641290512352,1.6525216,168.11,168.01,24.5644]
[1641290512754,1.6525216,168.11,168.01,25.8593]
[1641290512950,25.9199216,168.12,168.01,25.8593]
[1641290513550,24.2674,168.12,168.01,25.8593]
[1641290520161,24.2674,168.12,168.01,25.5993]
[1641290520658,24.2674,168.12,168.01,25.0993]
[1641290520857,1.6525216,168.11,168.01,25.0993]
[1641290521959,1.3349,168.1,168.01,24.0644]
[1641290522756,1.3349,168.1,168.01,24.5644]
[1641290523162,1.3349,168.1,168.01,24.0644]
[1641290524360,1.3349,168.1,168.01,0.76]
[1641290524663,24.9763,168.1,168.01,0.5]
[1641290524859,24.9763,168.1,167.99,25.9185]
[1641290526062,26.6288216,168.1,167.99,25.9185]
[1641290527168,26.6288216,168.1,168.0,8.54]
[1641290527365,26.6288216,168.1,168.0,9.04]
[1641290527569,26.6288216,168.1,168.01,22.5286]
[1641290527969,24.9763,168.1,168.01,23.2886]
[1641290533471,24.9763,168.1,168.01,31.8286]
[1641290534274,24.9763,168.1,167.99,1.3254]
[1641290534471,24.9763,168.1,167.98,2.69243425]
[1641290534472,33.5163,168.1,167.98,2.69243425]
[1641290534674,35.6688216,168.1,167.98,2.69243425]
[1641290534872,35.9288216,168.1,167.98,2.69243425]
[1641290535674,1.6525216,168.08,167.98,3.19243425]
[1641290536078,18.73329066,168.08,167.98,3.19243425]
[1641290536373,17.08076906,168.08,167.98,3.19243425]
[1641290536873,18.73329066,168.08,167.98,3.19243425]
[1641290537274,18.73329066,168.08,167.98,3.45243425]
[1641290537481,20.08099066,168.08,167.98,3.45243425]
[1641290537777,20.08099066,168.08,167.98,3.19243425]
[1641290537977,18.42846906,168.08,167.98,3.19243425]
[1641290538577,18.42846906,168.08,167.99,30.85204815]
[1641290538777,1.3477,168.08,167.99,30.85204815]
[1641290539975,1.3477,168.08,167.99,31.61204815]
[1641290543185,1.3477,168.08,167.99,40.15204815]
[1641290543584,1.3477,168.08,167.99,8.8]
[1641290545005,1.3477,168.08,167.99,9.3]
[1641290551814,1.3477,168.08,167.99,0.76]
[1641290552114,2.1077,168.08,167.99,0.5]
[1641290552315,2.1077,168.08,167.98,0.15577961]
[1641290552917,26.0075,168.08,167.99,2.61691968]
[1641290553319,27.6600216,168.08,167.99,2.61691968]
[1641290553518,27.6600216,168.08,167.99,2.87691968]
[1641290553719,26.0075,168.08,167.99,2.87691968]
[1641290553922,25.7475,168.08,167.99,2.87691968]
[1641290554320,25.7475,168.08,167.99,3.37691968]
[1641290554520,26.2475,168.08,167.99,3.37691968]
[1641290555520,26.5075,168.08,167.99,3.37691968]
[1641290555723,26.2475,168.08,167.99,3.37691968]
[1641290556222,26.2475,168.08,167.99,0.76]
[1641290556425,26.2475,168.08,167.99,0.26]
[1641290556623,35.0475,168.08,167.98,0.15577961]
[1641290556825,1.42669368,168.07,167.98,0.15577961]
[1641290557023,1.68669368,168.07,167.98,0.15577961]
[1641290557322,1.6525216,168.06,167.98,0.15577961]
[1641290557524,1.9125216,168.06,167.98,0.15577961]
[1641290557823,2.4125216,168.06,167.98,0.15577961]
[1641290558024,2.1525216,168.06,167.98,0.15577961]
[1641290558224,1.2596,168.05,167.98,0.15577961]
[1641290558425,21.21221341,168.04,167.98,0.15577961]
[1641290558825,21.71221341,168.04,167.98,0.15577961]
[1641290562430,21.21221341,168.04,167.98,0.15577961]
[1641290563931,21.71221341,168.04,167.98,0.15577961]
[1641290564533,21.21221341,168.04,167.98,0.15577961]
[1641290568135,25.6745,168.03,167.98,0.15577961]
[1641290574346,1.3786,168.03,167.98,0.15577961]
[1641290583573,22.6336,168.05,167.98,0.15577961]
[1641290584974,1.3179,168.04,167.98,0.15577961]
[1641290585874,1.3179,168.04,167.95,51.04624485]
[1641290587980,1.3179,168.04,167.95,25.6277]
[1641290588679,1.3179,168.04,167.95,25.1277]
[1641290588880,1.8179,168.04,167.95,24.8677]
[1641290589180,1.3179,168.04,167.95,24.8677]
[1641290589779,1.3179,168.04,167.95,25.3677]
[1641290590480,1.3179,168.04,167.95,25.6277]
[1641290591981,1.3179,168.04,167.95,25.78348842]
[1641290595885,1.8179,168.04,167.95,25.78348842]
[1641290596989,1.3179,168.04,167.95,25.78348842]
[1641290597390,1.8179,168.04,167.95,25.78348842]
[1641290597787,1.3179,168.04,167.95,25.78348842]
[1641290599197,1.8179,168.04,167.95,25.78348842]
[1641290599391,1.8179,168.04,167.95,0.91578842]
[1641290599592,2.0779,168.04,167.95,0.15578842]
[1641290599799,8.54,168.03,167.95,0.15578842]
[1641290600194,9.04,168.03,167.95,0.15578842]
[1641290600897,25.40715978,168.01,167.95,0.15578842]
[1641290602897,24.90715978,168.01,167.95,0.15578842]
[1641290603498,25.40715978,168.01,167.95,0.15578842]
[1641290608327,24.90715978,168.01,167.95,0.15578842]
[1641290613331,8.54,168.0,167.95,0.15578842]
[1641290613531,31.1988,168.0,167.95,0.15578842]
[1641290613733,73.897,167.99,167.95,0.15578842]
[1641290613931,8.54,167.98,167.95,0.15578842]
[1641290614131,24.6451,167.97,167.95,0.15578842]
[1641290614435,57.23207411,167.97,167.95,0.15578842]
[1641290627447,57.73207411,167.97,167.95,0.15578842]
[1641290628348,57.23207411,167.97,167.95,0.15578842]
[1641290632980,32.58697411,167.97,167.95,0.15578842]
[1641290638784,33.08697411,167.97,167.95,0.15578842]
[1641290640989,32.58697411,167.97,167.95,0.15578842]
[1641290641488,24.04697411,167.97,167.95,0.15578842]
[1641290647091,22.79747411,167.97,167.95,0.15578842]
[1641290647290,22.79747411,167.97,167.95,3.18779582]
[1641290647490,1.6525216,167.99,167.95,6.47999579]
[1641290647690,1.6525216,167.99,167.95,6.97999579]
[1641290648090,1.6525216,167.99,167.96,2.6773062]
[1641290648290,26.3012216,168.03,167.96,2.6773062]
[1641290648492,51.96892263,168.03,167.96,3.4373062]
[1641290649693,50.31640103,168.03,167.96,3.4373062]
[1641290649895,27.04310103,168.03,167.96,3.1773062]
[1641290650694,25.66770103,168.03,167.96,3.1773062]
[1641290651393,25.66770103,168.03,167.96,3.4373062]
[1641290652895,25.66770103,168.03,167.96,0.76]
[1641290653100,25.66770103,168.03,167.96,0.5]
[1641290653296,25.66770103,168.03,167.95,24.53318842]
[1641290653900,1.6525216,168.02,167.95,24.53318842]
[1641290655100,27.32022263,168.03,167.95,24.53318842]
[1641290655702,1.6525216,168.02,167.95,24.53318842]
[1641290661112,1.6525216,168.03,167.95,24.53318842]
[1641290661914,2.1525216,168.03,167.95,24.53318842]
[1641290662314,1.6525216,168.03,167.95,24.53318842]
[1641290662716,1.6525216,168.02,167.95,24.53318842]
[1641290663117,1.6525216,168.02,167.95,24.3774]
[1641290663317,51.6320509,168.04,167.95,24.3774]
[1641290663718,52.1320509,168.04,167.95,24.3774]
[1641290664022,51.6320509,168.04,167.95,24.3774]
[1641290664620,49.9795293,168.04,167.95,24.3774]
[1641290664837,50.4795293,168.04,167.95,24.3774]
[1641290665441,1.6525216,168.03,167.95,24.3774]
[1641290665842,2.1525216,168.03,167.95,24.3774]
[1641290666042,1.6525216,168.03,167.95,24.3774]
[1641290666242,1.6525216,168.03,167.95,24.53318077]
[1641290666841,60.1720509,168.04,167.95,24.53318077]
[1641290667042,60.6720509,168.04,167.95,24.53318077]
[1641290667447,1.6525216,168.03,167.95,24.27318077]
[1641290667848,2.1525216,168.03,167.95,24.27318077]
[1641290668045,0.5,168.03,167.95,24.27318077]
[1641290668248,0.5,168.03,167.95,23.77318077]
[1641290668446,60.9320509,168.04,167.95,24.27318077]
[1641290668646,60.9320509,168.04,167.95,23.77318077]
[1641290668846,60.9320509,168.04,167.95,24.03318077]
[1641290669046,1.6525216,168.03,167.95,0.41578077]
[1641290669251,1.6525216,168.03,167.95,0.91578077]